fUST/lending_fUST_20260105
["ID","MTS","AMOUNT","RATE_DAILY","PERIOD"]
[400471353,1767615039453,-500.0,0.00014881,2]
[400471354,1767615039463,-500.0,0.00014881,2]
[400471355,1767615039473,-500.0,0.00014881,2]
[400471356,1767615039483,-500.0,0.00014881,2]
[400471357,1767615039492,-500.0,0.00014881,2]
[400471358,1767615039502,-500.0,0.00014881,2]
[400471359,1767615039512,-500.0,0.00014881,2]
[400471360,1767615039521,-500.0,0.00014881,2]
[400471361,1767615039531,-500.0,0.00014881,2]
[400471362,1767615039540,-500.0,0.00014881,2]
[400471363,1767615039549,-500.0,0.00014881,2]
[400471364,1767615039558,-500.0,0.00014881,2]
[400471365,1767615039567,-500.0,0.00014881,2]
[400471366,1767615039576,-500.0,0.00014881,2]
[400471367,1767615039586,-500.0,0.00014881,2]
[400471368,1767615039595,-500.0,0.00014881,2]
[400471369,1767615039604,-500.0,0.00014881,2]
[400471370,1767615039614,-500.0,0.00014881,2]
[400471371,1767615039623,-500.0,0.00014881,2]
[400471372,1767615039632,-500.0,0.00014881,2]
[400471373,1767615039642,-500.0,0.00014881,2]
[400471374,1767615039651,-500.0,0.00014881,2]
[400471375,1767615039660,-500.0,0.00014881,2]
[400471376,1767615039671,-500.0,0.00014881,2]
[400471377,1767615039681,-500.0,0.00014881,2]
[400471378,1767615039692,-391.42902455,0.00014881,2]
[400471379,1767615039707,-108.57097545,0.00014881,2]
[400471380,1767615039717,-500.0,0.00014881,2]
[400471381,1767615039728,-500.0,0.00014881,2]
[400471382,1767615039738,-500.0,0.00014881,2]
[400471383,1767615039747,-500.0,0.00014881,2]
[400471384,1767615039756,-500.0,0.00014881,2]
[400471385,1767615039765,-313.11522455,0.00014881,2]
[400471386,1767615039778,-186.88477545,0.00014881,2]
[400471387,1767615039788,-500.0,0.00014881,2]
[400471388,1767615039798,-500.0,0.00014881,2]
[400471389,1767615039808,-309.15041378,0.00014881,2]
[400471390,1767615039818,-500.0,0.00014881,2]
[400471391,1767615039828,-500.0,0.00014881,2]
[400471392,1767615039838,-59.69247947,0.00014881,2]
[400471393,1767615039849,-440.30752053,0.00014881,2]
[400471394,1767615039859,-500.0,0.00014881,2]
[400471395,1767615039871,-500.0,0.00014881,2]
[400471396,1767615039882,-500.0,0.00014881,2]
[400471397,1767615039893,-500.0,0.00014881,2]
[400471398,1767615039903,-300.0,0.00014881,2]
[400471399,1767615039913,-1.48513173,0.00014881,2]
[400471420,1767615040492,-298.51486827,0.00014881,2]
[400471422,1767615040501,-419.31313173,0.00014882,2]
[400471428,1767615040555,-694.78167036,0.00014882,2]
[400471429,1767615040565,-32.93309622,0.00014886,2]
[400471431,1767615040578,-500.0,0.00014886,2]
[400471604,1767615046109,-542.41,0.00014886,2]
[400471615,1767615046405,-297.41690378,0.00014886,2]
[400471616,1767615046415,-1372.76,0.00014886,2]
[400471617,1767615046424,-925.65485499,0.00014886,2]
[400471618,1767615046436,-447.10514501,0.00014886,2]
[400471619,1767615046446,-5.49967258,0.00014886,2]
[400471620,1767615046457,-1367.26032742,0.00014886,2]
[400471621,1767615046467,-1372.76,0.00014886,2]
[400471622,1767615046476,-1343.05592571,0.00014886,2]
[400471623,1767615046487,-29.70407429,0.00014886,2]
[400471624,1767615046496,-1372.76,0.00014886,2]
[400471625,1767615046505,-1372.76,0.00014887,2]
[400471626,1767615046515,-1372.76,0.00014887,2]
[400471627,1767615046524,-1372.76,0.00014887,2]
[400471629,1767615046534,-1372.76,0.00014887,2]
[400471631,1767615046543,-1372.76,0.00014887,2]
[400471632,1767615046553,-1372.76,0.00014887,2]
[400471634,1767615046563,-1372.76,0.00014887,2]
[400471636,1767615046572,-1372.76,0.00014887,2]
[400471637,1767615046582,-1372.76,0.00014887,2]
[400471639,1767615046595,-1372.76,0.00014887,2]
[400471640,1767615046605,-1372.76,0.00014887,2]
[400471641,1767615046614,-1372.76,0.00014887,2]
[400471642,1767615046624,-1372.76,0.00014887,2]
[400471643,1767615046633,-1372.76,0.00014887,2]
[400471644,1767615046643,-1372.76,0.00014887,2]
[400471645,1767615046653,-1372.76,0.00014887,2]
[400471646,1767615046663,-1372.91200482,0.00014887,2]
[400471647,1767615046672,-16284.93689584,0.00014888,2]
[400471648,1767615046695,-1438.72,0.00014888,2]
[400471649,1767615046706,-20627.32266041,0.00014888,2]
[400471650,1767615046858,-74892.54521694,0.00014888,2]
[400471651,1767615046870,-7508.04858177,0.00014888,2]
[400471652,1767615098985,165.49,7.17e-05,2]
[400471653,1767615099388,206.86,7.469e-05,2]
[400471654,1767615099805,248.24,7.768e-05,2]
[400471655,1767615100236,289.61,8.066e-05,2]
[400471656,1767615100726,330.98,8.365e-05,2]
[400471657,1767615101154,372.35,8.664e-05,2]
[400471658,1767615101639,413.73,8.963e-05,2]
[400471659,1767615123693,172.64875307,0.00025873,120]
[400471660,1767615507807,180.73,8.725e-05,2]
[400471661,1767615508298,225.91,9.089e-05,2]
[400471662,1767615531323,-190.6009807,9.357e-05,2]
[400471663,1767615533550,-227.51795839,9.357e-05,2]
[400471664,1767615535145,-162.79696376,9.357e-05,2]
[400471665,1767615537293,-368.47453225,9.357e-05,2]
[400471666,1767615538830,-410.39368186,9.357e-05,2]
[400471667,1767615541391,-388.84484423,9.357e-05,2]
[400471668,1767615542881,-174.02008125,9.357e-05,2]
[400471669,1767615554356,388.84484423,9.246e-05,2]
[400471670,1767615580872,156.27,6.328e-05,2]
[400471671,1767615582038,208.36,6.603e-05,2]
[400471672,1767615582435,260.45,6.878e-05,2]
[400471673,1767615582923,312.54,7.153e-05,2]
[400471674,1767615583449,364.63,7.428e-05,2]
[400471675,1767615583940,416.72,7.704e-05,2]
[400471676,1767615584376,468.81,7.979e-05,2]
[400471677,1767615584799,520.9,8.254e-05,2]
[400471678,1767615607506,-2300.0,9.357e-05,2]
[400471679,1767615656105,158.55,8.044e-05,2]
[400471680,1767615713003,-777.35095756,9.357e-05,2]
[400471681,1767615713023,-551.0,9.357e-05,2]
[400471760,1767616240798,-2000.0,0.00013159,2]
[400471761,1767616240808,-728.84416476,0.00013292,2]
[400471762,1767616240817,-550.906962,0.00013699,2]
[400471763,1767616240827,-1103.45163583,0.00014175,2]
[400471764,1767616240836,-500.0,0.0001473,2]
[400471765,1767616240845,-632.57819929,0.0001473,2]
[400471766,1767616240855,-632.57819929,0.0001473,2]
[400471767,1767616240864,-265.74422679,0.0001473,2]
[400471768,1767616240874,-632.57819929,0.0001473,2]
[400471769,1767616240883,-213.5865559,0.0001473,2]
[400471770,1767616240893,-632.57819929,0.0001473,2]
[400471771,1767616240902,-632.57819929,0.0001473,2]
[400471772,1767616240911,-632.57819929,0.0001473,2]
[400471773,1767616240921,-632.57819929,0.0001473,2]
[400471774,1767616240930,-632.57819929,0.0001473,2]
[400471775,1767616240939,-632.57819929,0.0001473,2]
[400471776,1767616240948,-632.57819929,0.0001473,2]
[400471777,1767616240957,-500.0,0.0001473,2]
[400471778,1767616240967,-500.0,0.0001473,2]
[400471779,1767616240976,-500.0,0.0001473,2]
[400471780,1767616240985,-500.0,0.0001473,2]
[400471781,1767616240995,-500.0,0.0001473,2]
[400471782,1767616241004,-500.0,0.0001473,2]
[400471783,1767616241012,-500.0,0.0001473,2]
[400471784,1767616241021,-632.57819929,0.0001473,2]
[400471785,1767616241030,-500.0,0.0001473,2]
[400471786,1767616241039,-500.0,0.0001473,2]
[400471787,1767616241048,-500.0,0.0001473,2]
[400471788,1767616241057,-163.20488132,0.0001473,2]
[400471789,1767616241067,-500.0,0.0001473,2]
[400471790,1767616241076,-500.0,0.0001473,2]
[400471791,1767616241086,-270.30337956,0.0001473,2]
[400471792,1767616241095,-500.0,0.0001473,2]
[400471793,1767616241104,-500.0,0.0001473,2]
[400471794,1767616241113,-500.0,0.0001473,2]
[400471795,1767616241122,-500.0,0.0001473,2]
[400471796,1767616241131,-500.0,0.0001473,2]
[400471797,1767616241140,-500.0,0.0001473,2]
[400471798,1767616241149,-500.0,0.0001473,2]
[400471799,1767616241158,-500.0,0.0001473,2]
[400471800,1767616241167,-500.0,0.0001473,2]
[400471801,1767616241177,-500.0,0.0001473,2]
[400471802,1767616241186,-500.0,0.0001473,2]
[400471803,1767616241195,-500.0,0.0001473,2]
[400471804,1767616241205,-500.0,0.0001473,2]
[400471805,1767616241214,-500.0,0.0001473,2]
[400471806,1767616241224,-500.0,0.0001473,2]
[400471807,1767616241233,-400.0,0.0001473,2]
[400471808,1767616241243,-500.0,0.0001473,2]
[400471809,1767616241253,-500.0,0.0001473,2]
[400471810,1767616241263,-277.43338189,0.0001473,2]
[400471811,1767616241303,-222.56661811,0.0001473,2]
[400471812,1767616241313,-500.0,0.0001473,2]
[400471813,1767616241322,-500.0,0.0001473,2]
[400471814,1767616241332,-500.0,0.0001473,2]
[400471815,1767616241341,-500.0,0.0001473,2]
[400471816,1767616241351,-632.57819929,0.0001473,2]
[400471817,1767616241360,-169.42355805,0.0001473,2]
[400472073,1767616246861,-330.57644195,0.0001473,2]
[400472074,1767616246871,-500.0,0.0001473,2]
[400472075,1767616246882,-500.0,0.0001473,2]
[400472076,1767616246892,-632.57819929,0.0001473,2]
[400472077,1767616246901,-500.0,0.0001473,2]
[400472078,1767616246910,-500.0,0.0001473,2]
[400472079,1767616246919,-500.0,0.0001473,2]
[400472080,1767616246928,-500.0,0.0001473,2]
[400472081,1767616246938,-632.57819929,0.0001473,2]
[400472082,1767616246948,-500.0,0.0001473,2]
[400472083,1767616246957,-500.0,0.0001473,2]
[400472084,1767616246966,-500.0,0.0001473,2]
[400472085,1767616246976,-500.0,0.0001473,2]
[400472086,1767616246986,-500.0,0.0001473,2]
[400472087,1767616246998,-500.0,0.0001473,2]
[400472088,1767616247007,-500.0,0.0001473,2]
[400472089,1767616247017,-500.0,0.0001473,2]
[400472090,1767616247027,-500.0,0.0001473,2]
[400472091,1767616247038,-500.0,0.0001473,2]
[400472092,1767616247047,-234.59114479,0.0001473,2]
[400472146,1767617431687,-290.97669899,0.00014623,2]
[400472179,1767617437692,-245.04425976,0.00014623,2]
[400472181,1767617437702,-544.01725139,0.00014623,2]
[400472182,1767617437711,-544.01725139,0.00014623,2]
[400472184,1767617437720,-544.01725139,0.00014623,2]
[400472186,1767617437730,-544.01725139,0.00014623,2]
[400472188,1767617437740,-544.01725139,0.00014623,2]
[400472190,1767617437749,-544.01725139,0.00014623,2]
[400472192,1767617437759,-544.01725139,0.00014623,2]
[400472193,1767617437768,-544.01725139,0.00014623,2]
[400472194,1767617437777,-544.01725139,0.00014623,2]
[400472195,1767617437786,-544.01725139,0.00014623,2]
[400472196,1767617437805,-544.01725139,0.00014623,2]
[400472197,1767617437816,-544.01725139,0.00014623,2]
[400472198,1767617437825,-500.0,0.00014623,2]
[400472199,1767617437835,-500.0,0.00014623,2]
[400472200,1767617437844,-500.0,0.00014623,2]
[400472201,1767617437860,-500.0,0.00014623,2]
[400472202,1767617437875,-500.0,0.00014623,2]
[400472203,1767617437889,-500.0,0.00014623,2]
[400472204,1767617437902,-500.0,0.00014623,2]
[400472205,1767617437914,-544.01725139,0.00014623,2]
[400472206,1767617437925,-500.0,0.00014623,2]
[400472207,1767617437935,-500.0,0.00014623,2]
[400472208,1767617437947,-500.0,0.00014623,2]
[400472209,1767617437959,-544.01725139,0.00014623,2]
[400472210,1767617437971,-500.0,0.00014623,2]
[400472211,1767617437983,-500.0,0.00014623,2]
[400472212,1767617437994,-500.0,0.00014623,2]
[400472213,1767617438006,-500.0,0.00014623,2]
[400472215,1767617438018,-500.0,0.00014623,2]
[400472217,1767617438030,-500.0,0.00014623,2]
[400472218,1767617438041,-8.1487354,0.00014623,2]
[400472220,1767617438056,-491.8512646,0.00014623,2]
[400472221,1767617438069,-500.0,0.00014623,2]
[400472222,1767617438085,-500.0,0.00014623,2]
[400472223,1767617438097,-241.87045355,0.00014623,2]
[400472251,1767617439836,-258.12954645,0.00014623,2]
[400472253,1767617439848,-500.0,0.00014623,2]
[400472255,1767617439859,-500.0,0.00014623,2]
[400472256,1767617439870,-514.99778441,0.00014623,2]
[400472257,1767617439880,-500.0,0.00014623,2]
[400472258,1767617439892,-477.03033795,0.00014623,2]
[400472259,1767617439904,-500.0,0.00014623,2]
[400472260,1767617439916,-65.27481417,0.00014623,2]
[400472277,1767617445928,-434.72518583,0.00014623,2]
[400472278,1767617445940,-500.0,0.00014623,2]
[400472279,1767617445950,-500.0,0.00014623,2]
[400472281,1767617445962,-500.0,0.00014623,2]
[400472284,1767617445975,-500.0,0.00014623,2]
[400472285,1767617445987,-500.0,0.00014623,2]
[400472286,1767617445999,-500.0,0.00014623,2]
[400472287,1767617446011,-500.0,0.00014623,2]
[400472288,1767617446023,-500.0,0.00014623,2]
[400472289,1767617446035,-254.54684774,0.00014623,2]
[400472299,1767617448137,-245.45315226,0.00014623,2]
[400472300,1767617448152,-500.0,0.00014623,2]
[400472301,1767617448162,-500.0,0.00014623,2]
[400472302,1767617448172,-500.0,0.00014623,2]
[400472303,1767617448183,-500.0,0.00014623,2]
[400472304,1767617448194,-500.0,0.00014623,2]
[400472305,1767617448205,-500.0,0.00014623,2]
[400472306,1767617448215,-500.0,0.00014623,2]
[400472307,1767617448226,-500.0,0.00014623,2]
[400472308,1767617448237,-544.01725139,0.00014623,2]
[400472309,1767617448249,-500.0,0.00014623,2]
[400472310,1767617448260,-500.0,0.00014623,2]
[400472311,1767617448271,-500.0,0.00014623,2]
[400472312,1767617448282,-500.0,0.00014623,2]
[400472313,1767617448293,-500.0,0.00014623,2]
[400472314,1767617448304,-500.0,0.00014623,2]
[400472315,1767617448314,-500.0,0.00014623,2]
[400472316,1767617448325,-500.0,0.00014623,2]
[400472317,1767617448335,-500.0,0.00014623,2]
[400472318,1767617448347,-500.0,0.00014623,2]
[400472319,1767617448358,-500.0,0.00014623,2]
[400472320,1767617448368,-476.15443352,0.00014623,2]
[400472321,1767617448378,-577.49523608,0.00014623,2]
[400472322,1767617448388,-577.49523608,0.00014623,2]
[400472323,1767617448400,-577.49523608,0.00014623,2]
[400472324,1767617448410,-577.49523608,0.00014623,2]
[400472325,1767617448421,-577.49523608,0.00014623,2]
[400472326,1767617448431,-577.49523608,0.00014623,2]
[400472327,1767617448444,-577.49523608,0.00014623,2]
[400472328,1767617448454,-577.49523608,0.00014623,2]
[400472329,1767617448464,-500.0,0.00014623,2]
[400472330,1767617448477,-500.0,0.00014623,2]
[400472331,1767617448487,-500.0,0.00014623,2]
[400472332,1767617448497,-500.0,0.00014623,2]
[400472333,1767617448508,-500.0,0.00014623,2]
[400472334,1767617448518,-40.4576949,0.00014623,2]
[400472335,1767617448531,-459.5423051,0.00014623,2]
[400472336,1767617448541,-500.0,0.00014623,2]
[400472337,1767617448551,-500.0,0.00014623,2]
[400472338,1767617448562,-500.0,0.00014623,2]
[400472339,1767617448572,-500.0,0.00014623,2]
[400472340,1767617448583,-190.55530938,0.00014623,2]
[400472341,1767617448594,-500.0,0.00014623,2]
[400472342,1767617448604,-500.0,0.00014623,2]
[400472343,1767617448615,-432.4133243,0.00014623,2]
[400472344,1767617448627,-67.5866757,0.00014623,2]
[400472345,1767617448638,-232.4133243,0.00014623,2]
[400472346,1767617448650,-267.5866757,0.00014623,2]
[400472347,1767617448660,-500.0,0.00014623,2]
[400472348,1767617448672,-300.0,0.00014623,2]
[400472349,1767617448682,-500.0,0.00014623,2]
[400472350,1767617448695,-500.0,0.00014623,2]
[400472351,1767617448706,-500.0,0.00014623,2]
[400472352,1767617448716,-577.49523608,0.00014623,2]
[400472353,1767617448727,-500.0,0.00014623,2]
[400472354,1767617448738,-500.0,0.00014623,2]
[400472355,1767617448748,-500.0,0.00014623,2]
[400472356,1767617448758,-500.0,0.00014623,2]
[400472357,1767617448768,-500.0,0.00014623,2]
[400472358,1767617448780,-263.29443714,0.00014623,2]
[400472359,1767617479764,191.87,7.936e-05,2]
[400472360,1767617480180,239.84,8.267e-05,2]
[400472361,1767617480615,287.81,8.597e-05,2]
[400472362,1767617481090,335.78,8.928e-05,2]
[400472363,1767617508021,-383.74,9.259e-05,2]
[400472364,1767617552296,177.92,7.315e-05,2]
[400472365,1767617552763,207.57,7.597e-05,2]
[400472366,1767617553207,237.22,7.878e-05,2]
[400472367,1767617553962,266.88,8.159e-05,2]
[400472368,1767617554668,296.53,8.441e-05,2]
[400472369,1767617625336,500.99272779,0.00030136,120]
[400472370,1767617756265,200.0,0.000301,120]
[400472408,1767618631774,-874.63818407,0.00011643,10]
[400472409,1767618631786,-543.0,0.00011643,10]
[400472410,1767618631797,-524.86494536,0.00011643,10]
[400472423,1767618637973,-1976.77224746,0.00011643,10]
[400472424,1767618637984,-1080.72462311,0.00011643,10]
[400472425,1767618637993,-200.0,0.00012,2]
[400472426,1767618638003,-177.0,0.00013881,2]
[400472427,1767618638013,-300.0,0.00014174,2]
[400472428,1767618638027,-1118.43223847,0.00014175,2]
[400472429,1767618638036,-1718.63076344,0.00014175,2]
[400472442,1767618640084,-368.2337135,0.00014175,2]
[400472444,1767618640094,-518.4766714,0.00014414,2]
[400472446,1767618640107,-1131.63761844,0.00014414,2]
[400472448,1767618640122,-900.0,0.00014414,2]
[400472452,1767618644541,-272.83182917,0.00014414,2]
[400472485,1767618646131,-1437.1938843,0.00014414,2]
[400472487,1767618646143,-1411.95357189,0.00014414,2]
[400472630,1767618864052,155.0,7e-05,2]
[400472634,1767619533392,175.0,0.00030137,120]
[400472643,1767619734176,2495.748638,0.000136,60]
[400472644,1767619734200,2500.0,0.000136,60]
[400472645,1767619734224,2500.0,0.000136,60]
[400472646,1767619734248,2500.0,0.000136,60]
[400472650,1767619754868,10000.0,0.0001,30]
[400472651,1767619762911,10000.0,0.0001,30]
[400472652,1767619780236,2531.29,0.0001,30]
[400472653,1767619799140,10000.0,0.0001,30]
[400472668,1767619832148,-8249.5203899,0.00013437,2]
[400472669,1767619832158,-300.0,0.00013698,2]
[400472670,1767619832167,-558.959998,0.00013699,2]
[400472671,1767619832177,-220.332689,0.00013699,2]
[400472672,1767619832186,-500.0,0.00013817,2]
[400472673,1767619832196,-500.0,0.00013817,2]
[400472674,1767619832205,-500.0,0.00013817,2]
[400472675,1767619832214,-500.0,0.00013817,2]
[400472676,1767619832223,-500.0,0.00013817,2]
[400472677,1767619832232,-500.0,0.00013817,2]
[400472678,1767619832241,-500.0,0.00013817,2]
[400472679,1767619832251,-500.0,0.00013817,2]
[400472680,1767619832260,-500.0,0.00013817,2]
[400472681,1767619832269,-500.0,0.00013817,2]
[400472682,1767619832278,-500.0,0.00013817,2]
[400472683,1767619832287,-500.0,0.00013817,2]
[400472684,1767619832296,-500.0,0.00013817,2]
[400472685,1767619832306,-500.0,0.00013817,2]
[400472686,1767619832315,-618.87003311,0.00013817,2]
[400472687,1767619832324,-500.0,0.00013817,2]
[400472688,1767619832488,-117.84431995,0.00013817,2]
[400472689,1767619832501,-158.17732966,0.00013817,2]
[400472690,1767619832510,-500.0,0.00013817,2]
[400472691,1767619832519,-500.0,0.00013817,2]
[400472692,1767619832528,-418.05910286,0.00013817,2]
[400472693,1767619832539,-81.94089714,0.00013817,2]
[400472694,1767619832548,-234.07580185,0.00013817,2]
[400472695,1767619832559,-265.92419815,0.00013817,2]
[400472696,1767619832568,-412.15927137,0.00013817,2]
[400472697,1767619832685,-87.84072863,0.00013817,2]
[400472698,1767619832695,-427.81980318,0.00013817,2]
[400472712,1767619838021,-72.18019682,0.00013817,2]
[400472713,1767619838035,-500.0,0.00013817,2]
[400472714,1767619838044,-500.0,0.00013817,2]
[400472715,1767619838054,-500.0,0.00013817,2]
[400472716,1767619838065,-324.76131246,0.00013817,2]
[400472717,1767619838078,-175.23868754,0.00013817,2]
[400472718,1767619838088,-479.76016109,0.00013817,2]
[400472719,1767619838097,-277.61544335,0.00013817,2]
[400472720,1767619838107,-500.0,0.00013817,2]
[400472721,1767619838118,-500.0,0.00013817,2]
[400472722,1767619838128,-500.0,0.00013817,2]
[400472723,1767619838138,-397.31361405,0.00013817,2]
[400472724,1767619838150,-102.68638595,0.00013817,2]
[400472725,1767619838160,-500.0,0.00013817,2]
[400472726,1767619838170,-147.31361405,0.00013817,2]
[400472731,1767619838691,10000.0,0.0001,30]
[400472743,1767619840259,-352.68638595,0.00013817,2]
[400472744,1767619840269,-500.0,0.00013817,2]
[400472745,1767619840279,-197.33573884,0.00013817,2]
[400472746,1767619840288,-51642.37850106,0.00013818,2]
[400472747,1767619840297,-3427.0782238,0.00013919,2]
[400472748,1767619840307,-789.6033544,0.00013919,2]
[400472749,1767619840316,-597.19814519,0.00014175,2]
[400472792,1767619844098,10000.0,0.0001,10]
[400472804,1767619844491,-487.6063016,0.00014175,2]
[400472806,1767619844500,-500.0,0.00014405,2]
[400472808,1767619844510,-250.0,0.00014405,2]
[400472810,1767619844519,-151.54965873,0.00014405,2]
[400472812,1767619844529,-250.0,0.00014405,2]
[400472814,1767619844538,-250.0,0.00014405,2]
[400472816,1767619844547,-250.0,0.00014405,2]
[400472818,1767619844557,-250.0,0.00014405,2]
[400472820,1767619844566,-250.0,0.00014405,2]
[400472822,1767619844575,-250.0,0.00014405,2]
[400472824,1767619844584,-250.0,0.00014405,2]
[400472826,1767619844594,-250.0,0.00014405,2]
[400472827,1767619844603,-250.0,0.00014405,2]
[400472829,1767619844612,-250.0,0.00014405,2]
[400472831,1767619844622,-151.0,0.00014405,2]
[400472834,1767619844632,-250.0,0.00014405,2]
[400472836,1767619844642,-287.42306704,0.00014405,2]
[400472838,1767619844651,-250.0,0.00014405,2]
[400472840,1767619844660,-250.0,0.00014405,2]
[400472842,1767619844670,-250.0,0.00014405,2]
[400472843,1767619844679,-171.805,0.00014409,2]
[400472845,1767619844689,-282.20871217,0.0001473,2]
[400472847,1767619844698,-2019.60889358,0.00014925,2]
[400472849,1767619844707,-1041.66666667,0.00014998,2]
[400472850,1767619844716,-181.7613394,0.00015068,2]
[400472851,1767619844726,-600.0,0.00015184,2]
[400472852,1767619844735,-1300.0,0.000155,2]
[400472853,1767619844744,-161.46121419,0.0001551,2]
[400472854,1767619844755,-466.53878581,0.0001551,2]
[400472855,1767619844765,-320.84567087,0.0001551,2]
[400472860,1767619846262,-652.0,0.0001551,2]
[400472861,1767619850931,10000.0,0.0001,30]
[400472862,1767619857294,10000.0,0.0001,30]
[400472863,1767619864938,3044.22,0.0001,30]
[400472864,1767619884341,10000.0,0.0001,30]
[400472865,1767619892440,10000.0,0.0001,30]
[400472866,1767619898802,10000.0,0.0001,30]
[400472867,1767619905446,4523.17,0.0001,30]
[400472909,1767621032216,-171.806,0.00013444,2]
[400472910,1767621032226,-553.41720192,0.00013444,2]
[400472911,1767621032238,-57.58279808,0.00013444,2]
[400472912,1767621032248,-499.67720192,0.00013716,2]
[400472918,1767621038249,-0.32279808,0.00013716,2]
[400472919,1767621038259,-364.17949371,0.00013716,2]
[400472920,1767621038268,-134.06149829,0.00013716,2]
[400472921,1767621038308,-365.93850171,0.00013716,2]
[400472922,1767621038318,-179.87444812,0.00013716,2]
[400472923,1767621038327,-219.97335123,0.00013716,2]
[400472924,1767621038338,-346.7409834,0.00013898,2]
[400472925,1767621038349,-935.3086907,0.00013998,2]
[400472926,1767621038359,-81.28692236,0.00014091,2]
[400472927,1767621038370,-518.71307764,0.00014091,2]
[400472928,1767621038383,-250.0,0.00014126,2]
[400472929,1767621038392,-250.0,0.00014126,2]
[400472930,1767621038401,-250.0,0.00014126,2]
[400472931,1767621038411,-250.0,0.00014126,2]
[400472932,1767621038419,-250.0,0.00014126,2]
[400472933,1767621038429,-250.0,0.00014126,2]
[400472934,1767621038439,-250.0,0.00014126,2]
[400472935,1767621038449,-250.0,0.00014126,2]
[400472936,1767621038459,-250.0,0.00014126,2]
[400472937,1767621038469,-250.0,0.00014126,2]
[400472938,1767621038478,-250.0,0.00014126,2]
[400472939,1767621038487,-250.0,0.00014126,2]
[400472940,1767621038497,-250.0,0.00014126,2]
[400472941,1767621038506,-250.0,0.00014126,2]
[400472942,1767621038515,-250.0,0.00014126,2]
[400472943,1767621038525,-1041.66666667,0.00014155,2]
[400472944,1767621038534,-1050.94877844,0.00014175,2]
[400472945,1767621038543,-151.0,0.000143,2]
[400472946,1767621038553,-151.0,0.000144,2]
[400472947,1767621038562,-151.0,0.000144,2]
[400472948,1767621038571,-151.0,0.000145,2]
[400472949,1767621038581,-151.0,0.000145,2]
[400472950,1767621038590,-151.0,0.000146,2]
[400472951,1767621038599,-151.0,0.000146,2]
[400472952,1767621038608,-216.46850123,0.00014623,2]
[400472953,1767621038618,-865.0081309,0.00014623,2]
[400472954,1767621038627,-496.48086473,0.00014685,2]
[400472955,1767621038638,-3560.4985473,0.00015013,2]
[400472956,1767621038647,-1951.89755689,0.0001504,2]
[400472957,1767621038657,-290.28246514,0.000152,2]
[400472958,1767621038666,-177.0,0.00015444,2]
[400472959,1767621038675,-720.0,0.00015501,2]
[400472960,1767621038684,-500.0,0.00015897,2]
[400472961,1767621038693,-330.4739526,0.00015897,2]
[400472962,1767621038703,-506.08191044,0.00015897,2]
[400472963,1767621038712,-506.08191044,0.00015897,2]
[400472964,1767621038721,-506.08191044,0.00015897,2]
[400472965,1767621038730,-500.0,0.00015897,2]
[400472966,1767621038740,-506.08191044,0.00015897,2]
[400472967,1767621038749,-500.0,0.00015897,2]
[400472968,1767621038758,-506.08191044,0.00015897,2]
[400472969,1767621038767,-638.34447716,0.00015897,2]
[400472970,1767621038777,-506.08191044,0.00015897,2]
[400472971,1767621038786,-506.08191044,0.00015897,2]
[400472972,1767621038795,-500.0,0.00015897,2]
[400472973,1767621038804,-506.08191044,0.00015897,2]